bitfinex/quotes_BTCUSD_20250615
["timestamp","ask_amount","ask_price","bid_price","bid_amount"]
[1750001178170,0.59578927,105830.0,105820.0,0.28798186]
[1750001178378,0.59578927,105830.0,105820.0,0.28798167]
[1750001178588,0.59578927,105830.0,105820.0,0.2879816]
[1750001178804,0.59578927,105830.0,105820.0,0.28798165]
[1750001179027,0.5674438,105830.0,105820.0,0.2702742]
[1750001179671,0.5674438,105830.0,105820.0,0.28798097]
[1750001179880,0.5768922,105830.0,105820.0,0.28798034]
[1750001180089,0.5768922,105830.0,105820.0,0.2879806]
[1750001180298,0.5768922,105830.0,105820.0,0.28798045]
[1750001180583,0.5768922,105830.0,105820.0,0.2879803]
[1750001180784,0.5768922,105830.0,105820.0,0.28798026]
[1750001181209,0.5768922,105830.0,105820.0,0.2702742]
[1750001181420,0.5768922,105830.0,105820.0,0.28798325]
[1750001181647,0.5768922,105830.0,105820.0,0.2702742]
[1750001182100,0.5768922,105830.0,105820.0,0.28798339]
[1750001182307,0.5674438,105830.0,105820.0,0.2702742]
[1750001182934,0.5768922,105830.0,105820.0,0.2702742]
[1750001183354,0.5768922,105830.0,105820.0,0.28798363]
[1750001183573,0.58634078,105830.0,105820.0,0.2702742]
[1750001183796,0.5768922,105830.0,105820.0,0.2702742]
[1750001184016,0.5768922,105830.0,105820.0,0.28798369]
[1750001184250,0.5768922,105830.0,105820.0,0.28798367]
[1750001184470,0.5768922,105830.0,105820.0,0.28798366]
[1750001184684,0.5768922,105830.0,105820.0,0.2702742]
[1750001184895,0.5768922,105830.0,105820.0,0.28798373]
[1750001185104,0.5768922,105830.0,105820.0,0.2702742]
[1750001185310,0.5674438,105830.0,105820.0,0.28798316]
[1750001185542,0.57689211,105830.0,105820.0,0.28798193]
[1750001185768,0.57689211,105830.0,105820.0,0.28798133]
[1750001186050,0.57689211,105830.0,105820.0,0.28798057]
[1750001186264,0.5863406,105830.0,105820.0,0.28798051]
[1750001186611,0.5863406,105830.0,105820.0,0.2702742]
[1750001187046,0.5863406,105830.0,105820.0,0.28798023]
[1750001187272,0.57689211,105830.0,105820.0,0.2879802]
[1750001187483,0.5863406,105830.0,105820.0,0.2702742]
[1750001187696,0.5863406,105830.0,105820.0,0.28798019]
[1750001187915,0.5863406,105830.0,105820.0,0.2702742]
[1750001187916,0.59578927,105830.0,105820.0,0.2702742]
[1750001188194,0.5863406,105830.0,105820.0,0.28797936]
[1750001188406,0.5863406,105830.0,105820.0,0.2702742]
[1750001188622,0.93578927,105830.0,105820.0,0.28797932]
[1750001188837,0.9263406,105830.0,105820.0,0.24200014]
[1750001189056,0.39004407,105830.0,105820.0,0.2597059]
[1750001189295,0.37114727,105830.0,105820.0,0.2702742]
[1750001189473,1.0618438,105830.0,105820.0,0.2702742]
[1750001189720,1.0618438,105830.0,105820.0,0.28797823]
[1750001189932,1.0618438,105830.0,105820.0,0.2702742]
[1750001190147,1.0618438,105830.0,105820.0,0.2879781]
[1750001190372,1.0618438,105830.0,105820.0,0.28797725]
[1750001190594,1.0618438,105830.0,105820.0,0.28797689]
[1750001190820,1.08074069,105830.0,105820.0,0.28797659]
[1750001191005,1.09018936,105830.0,105820.0,0.28797754]
[1750001191210,1.09018936,105830.0,105820.0,0.2702742]
[1750001191416,0.55389283,105830.0,105820.0,0.28797765]
[1750001191631,1.09018936,105830.0,105820.0,0.2702742]
[1750001191839,1.0618438,105830.0,105820.0,0.2702742]
[1750001192066,0.9074438,105830.0,105820.0,0.28793534]
[1750001192265,1.0618438,105830.0,105820.0,0.28793526]
[1750001192478,1.0618438,105830.0,105820.0,0.27023311]
[1750001192676,1.0618438,105830.0,105820.0,0.28793485]
[1750001192888,1.0618438,105830.0,105820.0,0.28793479]
[1750001193101,1.0618438,105830.0,105820.0,0.27023311]
[1750001193349,1.0618438,105830.0,105820.0,0.2879472]
[1750001193741,1.0618438,105830.0,105820.0,0.2702455]
[1750001193954,1.0618438,105830.0,105820.0,0.28794536]
[1750001194165,1.0618438,105830.0,105820.0,0.28794551]
[1750001194399,1.0618438,105830.0,105820.0,0.28794544]
[1750001194942,1.0618438,105830.0,105820.0,0.28794545]
[1750001195157,1.0712922,105830.0,105820.0,0.28794545]
[1750001195367,1.0712922,105830.0,105820.0,0.28794562]
[1750001195576,1.0712922,105830.0,105820.0,0.2879454]
[1750001195765,1.0618438,105830.0,105820.0,0.28794548]
[1750001196228,1.0618438,105830.0,105820.0,0.30794011]
[1750001196431,1.0712922,105830.0,105820.0,0.32564009]
[1750001196613,1.0712922,105830.0,105820.0,0.32563995]
[1750001196916,1.0712922,105830.0,105820.0,0.3256399]
[1750001197379,1.0712922,105830.0,105820.0,0.32563993]
[1750001197585,1.0712922,105830.0,105820.0,0.30794011]
[1750001198000,1.0712922,105830.0,105820.0,0.32564016]
[1750001198210,0.52554727,105830.0,105820.0,0.32564]
[1750001198431,1.0618438,105830.0,105820.0,0.32564]
[1750001198635,1.0618438,105830.0,105820.0,0.30794011]
[1750001198853,1.0618438,105830.0,105820.0,0.32563993]
[1750001199281,0.52554727,105830.0,105820.0,0.32563993]
[1750001199509,1.0618438,105830.0,105820.0,0.30794011]
[1750001199724,1.0618438,105830.0,105820.0,0.32564018]
[1750001199934,1.0618438,105830.0,105820.0,0.32563987]
[1750001200109,1.0618438,105830.0,105820.0,0.3256401]
[1750001200322,1.0618438,105830.0,105820.0,0.30794011]
[1750001200528,1.0618438,105830.0,105820.0,0.32563944]
[1750001200732,1.0618438,105830.0,105820.0,0.32563954]
[1750001201521,1.0618438,105830.0,105820.0,0.32563973]
[1750001201729,1.0618438,105830.0,105820.0,0.32563974]
[1750001201936,1.0618438,105830.0,105820.0,0.30794011]
[1750001202138,1.07129211,105830.0,105820.0,0.32564026]
[1750001202343,1.07129211,105830.0,105820.0,0.32564019]
[1750001202525,1.07129211,105830.0,105820.0,0.32564116]
[1750001202722,1.07129211,105830.0,105820.0,0.30794011]
[1750001202944,1.13856126,105830.0,105820.0,0.32564115]
[1750001203154,1.12911295,105830.0,105820.0,0.32564115]
[1750001203386,1.12911295,105830.0,105820.0,0.32564104]
[1750001203693,1.12911295,105830.0,105820.0,0.30794011]
[1750001204128,1.12911295,105830.0,105820.0,0.32564096]
[1750001204335,1.12911295,105830.0,105820.0,0.30794011]
[1750001204547,1.12911295,105830.0,105820.0,0.32564087]
[1750001204782,1.12911295,105830.0,105820.0,0.32564099]
[1750001204991,1.12911295,105830.0,105820.0,0.32564095]
[1750001205175,1.12911295,105830.0,105820.0,0.30794011]
[1750001205414,1.12911295,105830.0,105820.0,0.32564072]
[1750001205629,1.12907295,105830.0,105820.0,0.32564029]
[1750001205821,1.12907295,105830.0,105820.0,0.30794011]
[1750001206044,1.12907295,105830.0,105820.0,0.32564261]
[1750001206382,1.12907295,105830.0,105820.0,0.32564276]
[1750001206609,1.12907295,105830.0,105820.0,0.32564278]
[1750001206884,1.12907295,105830.0,105820.0,0.32564281]
[1750001207450,1.12907295,105830.0,105820.0,0.3256429]
[1750001207675,1.12907295,105830.0,105820.0,0.30794011]
[1750001207888,1.12907295,105830.0,105820.0,0.32564205]
[1750001208048,1.12907295,105830.0,105820.0,0.32564183]
[1750001208665,1.12907295,105830.0,105820.0,0.27474546]
[1750001208877,0.94361295,105830.0,105820.0,0.46559645]
[1750001209086,4.727e-05,105830.0,105820.0,1.25406196]
[1750001209303,4.727e-05,105830.0,105820.0,1.15980123]
[1750001209511,4.727e-05,105830.0,105820.0,1.23522452]
[1750001209705,4.727e-05,105830.0,105820.0,1.23522414]
[1750001209937,4.727e-05,105830.0,105820.0,1.24460103]
[1750001210140,4.727e-05,105830.0,105820.0,1.16917606]
[1750001210351,4.727e-05,105830.0,105820.0,1.15979916]
[1750001210554,4.727e-05,105830.0,105820.0,1.1421104]
[1750001210756,4.727e-05,105830.0,105820.0,1.15979993]
[1750001211033,4.727e-05,105830.0,105820.0,0.5562351]
[1750001211219,4.727e-05,105830.0,105820.0,0.61278289]
[1750001211640,4.727e-05,105830.0,105820.0,0.59509251]
[1750001211849,4.727e-05,105830.0,105820.0,0.61278298]
[1750001212053,4.727e-05,105830.0,105820.0,0.59509251]
[1750001212256,4.727e-05,105830.0,105820.0,0.61278291]
[1750001212679,4.727e-05,105830.0,105820.0,0.59509251]
[1750001212883,4.727e-05,105830.0,105820.0,0.61278291]
[1750001213490,4.727e-05,105830.0,105820.0,0.59509251]
[1750001213749,4.727e-05,105830.0,105820.0,0.62218862]
[1750001213959,4.727e-05,105830.0,105820.0,0.62218858]
[1750001214176,4.727e-05,105830.0,105820.0,0.62218834]
[1750001214398,4.727e-05,105830.0,105820.0,0.6221889]
[1750001214626,4.727e-05,105830.0,105820.0,0.62218864]
[1750001214847,4.727e-05,105830.0,105820.0,0.60449821]
[1750001215058,4.727e-05,105830.0,105820.0,0.62218869]
[1750001215277,4.727e-05,105830.0,105820.0,0.62218838]
[1750001215487,4.727e-05,105830.0,105820.0,1.14077105]
[1750001215692,4.727e-05,105830.0,105820.0,1.15846028]
[1750001216148,4.727e-05,105830.0,105820.0,1.15846086]
[1750001216882,4.727e-05,105830.0,105820.0,0.62218802]
[1750001217357,4.727e-05,105830.0,105820.0,0.6221873]
[1750001217808,4.727e-05,105830.0,105820.0,0.60449821]
[1750001218245,4.727e-05,105830.0,105820.0,0.62218711]
[1750001218514,4.727e-05,105830.0,105820.0,0.56563852]
[1750001218729,4.727e-05,105830.0,105820.0,1.1019106]
[1750001218947,4.727e-05,105830.0,105820.0,1.10191058]
[1750001219431,4.727e-05,105830.0,105820.0,1.51733333]
[1750001219668,0.18876455,105840.0,105830.0,0.80034228]
[1750001219900,0.18876455,105840.0,105830.0,0.93691961]
[1750001220111,0.18876455,105840.0,105830.0,0.91923702]
[1750001220340,0.18876455,105840.0,105830.0,0.9369196]
[1750001220605,0.18876455,105840.0,105830.0,0.93691898]
[1750001220823,0.18876455,105840.0,105830.0,0.93691888]
[1750001221043,0.18876455,105840.0,105830.0,0.93691879]
[1750001221257,0.18876455,105840.0,105830.0,0.94091873]
[1750001221470,0.18876455,105840.0,105830.0,0.96623702]
[1750001222339,0.18876455,105840.0,105830.0,0.64073909]
[1750001222561,0.18876455,105840.0,105830.0,0.47439518]
[1750001222796,0.18876455,105840.0,105830.0,0.63655518]
[1750001223434,0.18876455,105840.0,105830.0,0.56849909]
[1750001223649,0.22016455,105840.0,105830.0,0.56849909]
[1750001224129,0.22016455,105840.0,105830.0,0.41417909]
[1750001224562,0.22016455,105840.0,105830.0,0.56849909]
[1750001225451,0.22016455,105840.0,105830.0,0.45178212]
[1750001225674,0.22016455,105840.0,105830.0,0.60610212]
[1750001226435,0.22016455,105840.0,105830.0,0.43724127]
[1750001226657,0.22016455,105840.0,105830.0,0.59156127]
[1750001229919,0.75643739,105840.0,105830.0,0.59156127]
[1750001230390,0.22016455,105840.0,105830.0,0.61050127]
[1750001232584,0.22016455,105840.0,105830.0,0.41857824]
[1750001232798,0.0314,105840.0,105830.0,0.57289824]
[1750001233936,0.0314,105850.0,105840.0,0.21730805]
[1750001234146,0.56772009,105850.0,105840.0,0.40203175]
[1750001234755,0.03144725,105850.0,105840.0,0.40203175]
[1750001234993,0.03144725,105850.0,105840.0,0.37381934]
[1750001235200,0.03144725,105850.0,105840.0,0.37481934]
[1750001235410,0.03144725,105850.0,105840.0,0.37581934]
[1750001237088,0.56772009,105850.0,105840.0,0.37581934]
[1750001239496,4.725e-05,105850.0,105840.0,0.43223425]
[1750001240361,0.03244725,105850.0,105840.0,0.45117425]
[1750001241468,0.03244725,105850.0,105840.0,0.46886059]
[1750001241663,0.03244725,105850.0,105840.0,0.46886086]
[1750001241856,0.03244725,105850.0,105840.0,0.46886125]
[1750001242074,0.56872009,105850.0,105840.0,0.45117425]
[1750001242266,0.56872009,105850.0,105840.0,0.62318134]
[1750001242500,0.56872009,105850.0,105840.0,0.6231813]
[1750001242730,0.56872009,105850.0,105840.0,0.60549425]
[1750001242944,0.56872009,105850.0,105840.0,0.62318145]
[1750001243160,0.56872009,105850.0,105840.0,0.62318081]
[1750001243393,0.03244725,105850.0,105840.0,0.62318046]
[1750001243613,0.03244725,105850.0,105840.0,0.62318037]
[1750001243838,0.03225829,105850.0,105840.0,0.58556368]
[1750001244038,0.03225829,105850.0,105840.0,0.5678777]
[1750001244257,0.03225829,105850.0,105840.0,0.58556281]
[1750001244477,0.03225829,105850.0,105840.0,0.58556297]
[1750001244700,0.03225829,105850.0,105840.0,0.5678777]
[1750001244918,0.03225829,105850.0,105840.0,0.58556303]
[1750001245153,0.03225829,105850.0,105840.0,0.58556304]
[1750001245424,0.03225829,105850.0,105840.0,0.5678777]
[1750001245866,0.03225829,105850.0,105840.0,0.5855625]
[1750001246276,0.03225829,105850.0,105840.0,0.58556238]
[1750001246491,0.03225829,105850.0,105840.0,0.58556243]
[1750001246717,0.03225829,105850.0,105840.0,0.5855624]
[1750001246932,0.03225829,105850.0,105840.0,0.5678777]
[1750001247146,0.03225829,105850.0,105840.0,0.58556225]
[1750001247775,0.56853113,105850.0,105840.0,0.58556237]
[1750001248015,0.56853113,105850.0,105840.0,0.5855623]
[1750001248232,0.56853113,105850.0,105840.0,0.5678777]
[1750001248461,0.56853113,105850.0,105840.0,0.58556234]
[1750001248664,0.56853113,105850.0,105840.0,0.5678777]
[1750001248893,0.56853113,105850.0,105840.0,0.58556234]
[1750001249099,0.56853113,105850.0,105840.0,0.5678777]
[1750001249333,0.56853113,105850.0,105840.0,0.58556198]
[1750001249552,0.56853113,105850.0,105840.0,0.5678777]
[1750001249779,0.56853113,105850.0,105840.0,0.58556165]
[1750001250001,0.56853113,105850.0,105840.0,0.58556136]
[1750001250213,0.56853113,105850.0,105840.0,0.5678777]
[1750001250428,0.56853113,105850.0,105840.0,0.58556136]
[1750001250858,0.56853113,105850.0,105840.0,0.5678777]
[1750001251103,0.03225829,105850.0,105840.0,0.58556099]
[1750001251335,0.03225829,105850.0,105840.0,0.58556037]
[1750001251572,0.03225829,105850.0,105840.0,0.58555995]
[1750001251803,0.03225829,105850.0,105840.0,0.5678777]
[1750001252069,0.03225829,105850.0,105840.0,0.58555993]
[1750001252542,0.03225829,105850.0,105840.0,0.5678777]
[1750001252765,0.03225829,105850.0,105840.0,0.58556025]
[1750001252988,0.03225829,105850.0,105840.0,0.5678777]
[1750001253218,0.03225829,105850.0,105840.0,0.58556032]
[1750001253406,0.03225829,105850.0,105840.0,0.58556105]
[1750001253844,0.03225829,105850.0,105840.0,0.58556266]
[1750001254060,0.03225829,105850.0,105840.0,0.58556263]
[1750001254279,0.03225829,105850.0,105840.0,0.58556276]
[1750001254490,0.03225829,105850.0,105840.0,0.5678777]
[1750001254940,0.03225829,105850.0,105840.0,0.58556139]
[1750001255156,0.03225829,105850.0,105840.0,0.5678777]
[1750001255861,0.03225829,105850.0,105840.0,0.58556169]
[1750001256076,0.03225829,105850.0,105840.0,0.58556175]
[1750001256289,0.03225829,105850.0,105840.0,0.58556179]
[1750001256495,0.03225829,105850.0,105840.0,0.58556182]
[1750001256697,0.03225829,105850.0,105840.0,0.58556155]
[1750001256927,0.63545685,105850.0,105840.0,0.5678777]
[1750001257481,0.63545685,105850.0,105840.0,0.58556187]
[1750001257869,0.63545685,105850.0,105840.0,0.58556178]
[1750001258318,0.63545685,105850.0,105840.0,0.58556185]
[1750001258754,0.63545685,105850.0,105840.0,0.58556163]
[1750001258996,0.63545685,105850.0,105840.0,0.58556169]
[1750001259210,0.63545685,105850.0,105840.0,0.5653977]
[1750001259430,0.63545685,105850.0,105840.0,0.5830814]
[1750001259641,0.63545685,105850.0,105840.0,0.5830813]
[1750001259865,0.63545685,105850.0,105840.0,0.58308139]
[1750001260071,0.63545685,105850.0,105840.0,0.58308167]
[1750001260285,0.63545685,105850.0,105840.0,0.58308189]
[1750001260499,0.63545685,105850.0,105840.0,0.58308178]
[1750001260937,0.63545685,105850.0,105840.0,0.58308171]
[1750001261173,0.63545685,105850.0,105840.0,0.5653977]
[1750001261389,0.63545685,105850.0,105840.0,0.58308179]
[1750001261607,0.63545685,105850.0,105840.0,0.58308183]
[1750001261825,0.63545685,105850.0,105840.0,0.58308173]
[1750001262255,0.63545685,105850.0,105840.0,0.58308186]
[1750001262487,0.63545685,105850.0,105840.0,0.5830791]
[1750001262691,0.63545685,105850.0,105840.0,0.58307906]
[1750001262921,0.63545685,105850.0,105840.0,0.58307903]
[1750001263152,0.63545685,105850.0,105840.0,0.58307891]
[1750001263389,0.63545685,105850.0,105840.0,0.5830789]
[1750001263664,0.63545685,105850.0,105840.0,0.58307916]
[1750001263890,0.63545685,105850.0,105840.0,0.5653977]
[1750001264103,0.63545685,105850.0,105840.0,0.58307923]
[1750001264514,0.63545685,105850.0,105840.0,0.5653977]
[1750001264718,0.63545685,105850.0,105840.0,0.583079]
[1750001264916,0.63545685,105850.0,105840.0,0.58307894]
[1750001265148,0.63045685,105850.0,105840.0,0.5653977]
[1750001265549,0.63045685,105850.0,105840.0,0.58307931]
[1750001265764,0.63045685,105850.0,105840.0,0.5653977]
[1750001265973,0.63045685,105850.0,105840.0,0.58307944]
[1750001266183,0.63045685,105850.0,105840.0,0.58307902]
[1750001266418,0.63045685,105850.0,105840.0,0.5653977]
[1750001266630,0.63045685,105850.0,105840.0,0.5830789]
[1750001266852,0.63045685,105850.0,105840.0,0.5653977]
[1750001267076,0.63045685,105850.0,105840.0,0.583079]
[1750001267636,0.63045685,105850.0,105840.0,0.5653977]
[1750001267850,0.63045685,105850.0,105840.0,0.58307921]
[1750001268075,0.63045685,105850.0,105840.0,0.58307965]
[1750001268310,0.63045685,105850.0,105840.0,0.5653977]
[1750001268559,0.63045685,105850.0,105840.0,0.58308029]
[1750001268807,0.63045685,105850.0,105840.0,0.5653977]
[1750001269037,0.63045685,105850.0,105840.0,0.58308002]
[1750001269243,0.63045685,105850.0,105840.0,0.5653977]
[1750001269453,0.63045685,105850.0,105840.0,0.58307922]
[1750001269662,0.60319856,105850.0,105840.0,0.5653977]
[1750001269877,0.61849856,105850.0,105840.0,0.58307928]
[1750001270088,0.0313,105860.0,105850.0,0.21728753]
[1750001270315,0.63449856,105860.0,105850.0,0.35175348]
[1750001270529,0.63449856,105860.0,105850.0,0.44799524]
[1750001270756,0.63449856,105860.0,105850.0,0.43031389]
[1750001270966,0.63449856,105860.0,105850.0,0.44799545]
[1750001271443,0.63449856,105860.0,105850.0,0.44799513]
[1750001271444,0.63549856,105860.0,105850.0,0.44799513]
[1750001271647,0.63549856,105860.0,105850.0,0.44799492]
[1750001271854,0.63749856,105860.0,105850.0,0.44799492]
[1750001272283,0.63749856,105860.0,105850.0,0.44799714]
[1750001272487,0.63749856,105860.0,105850.0,0.43031389]
[1750001272726,0.63749856,105860.0,105850.0,0.44799695]
[1750001273360,0.63749856,105860.0,105850.0,0.43031389]
[1750001273627,0.63749856,105860.0,105850.0,0.44799695]
[1750001274701,0.63749856,105860.0,105850.0,0.44799751]
[1750001274926,0.63749856,105860.0,105850.0,0.39158263]
[1750001275207,0.63749856,105860.0,105850.0,0.3915827]
[1750001275446,0.63749856,105860.0,105850.0,0.39158221]
[1750001275661,0.63749856,105860.0,105850.0,0.39155726]
[1750001275853,0.73364778,105860.0,105850.0,0.37387386]
[1750001276024,0.73364778,105860.0,105850.0,0.32360179]
[1750001276222,0.73364778,105860.0,105850.0,0.30591833]
[1750001276641,0.73364778,105860.0,105850.0,0.32360279]
[1750001276965,0.63749856,105860.0,105850.0,0.32360282]
[1750001277174,0.63749856,105860.0,105850.0,0.32360281]
[1750001277385,0.64694419,105860.0,105850.0,0.32360281]
[1750001277847,0.64694419,105860.0,105850.0,0.32360265]
[1750001278314,0.64694419,105860.0,105850.0,0.32360271]
[1750001278552,0.67600774,105860.0,105850.0,0.32360271]
[1750001278768,0.83028774,105860.0,105850.0,0.32360271]
[1750001279020,0.83028774,105860.0,105850.0,0.30591833]
[1750001279205,0.83028774,105860.0,105850.0,0.32360252]
[1750001279643,0.83028774,105860.0,105850.0,0.32360247]
[1750001280270,0.82084202,105860.0,105850.0,0.30591833]
[1750001280498,0.80122419,105860.0,105850.0,0.30591833]
[1750001280728,0.81066991,105860.0,105850.0,0.32360248]
[1750001280935,0.81066991,105860.0,105850.0,0.30591833]
[1750001281156,0.81066991,105860.0,105850.0,0.32360248]
[1750001281368,0.82011581,105860.0,105850.0,0.32360273]
[1750001281599,0.82011581,105860.0,105850.0,0.32360275]
[1750001281823,0.82011581,105860.0,105850.0,0.3236028]
[1750001282038,0.82011581,105860.0,105850.0,0.30591833]
[1750001282251,0.81066991,105860.0,105850.0,0.3236028]
[1750001282926,0.82011581,105860.0,105850.0,0.32360225]
[1750001283143,0.82011581,105860.0,105850.0,0.30591833]
[1750001283351,0.82011581,105860.0,105850.0,0.32360264]
[1750001283569,0.82011581,105860.0,105850.0,0.30591833]
[1750001283800,0.82011581,105860.0,105850.0,0.32360321]
[1750001284277,0.82011581,105860.0,105850.0,0.34128825]
[1750001284512,0.82011581,105860.0,105850.0,0.34128831]
[1750001284859,0.82011581,105860.0,105850.0,0.32360321]
[1750001285083,0.82011581,105860.0,105850.0,0.34128798]
[1750001285306,0.82011581,105860.0,105850.0,0.34128805]
[1750001285557,0.82011581,105860.0,105850.0,0.32360321]
[1750001286000,0.82011581,105860.0,105850.0,0.34127896]
[1750001286220,0.81066991,105860.0,105850.0,0.34127902]
[1750001286418,0.81066991,105860.0,105850.0,0.34127912]
[1750001286921,0.81066991,105860.0,105850.0,0.34127899]
[1750001287144,0.81066991,105860.0,105850.0,0.341279]
[1750001287361,0.81066991,105860.0,105850.0,0.32360321]
[1750001287583,0.81066991,105860.0,105850.0,0.34127895]
[1750001287801,0.81066991,105860.0,105850.0,0.34127893]
[1750001288014,0.81066991,105860.0,105850.0,0.32360321]
[1750001288228,0.81066991,105860.0,105850.0,0.34127896]
[1750001289121,0.31306647,105860.0,105850.0,0.34127915]
[1750001289344,0.92571111,105860.0,105850.0,0.34127912]
[1750001289570,0.92571111,105860.0,105850.0,0.3412801]
[1750001289796,0.91626503,105860.0,105850.0,0.30356351]
[1750001290015,0.91626503,105860.0,105850.0,0.2858865]
[1750001290237,0.91626503,105860.0,105850.0,0.30356369]
[1750001290939,0.91626503,105860.0,105850.0,0.2858865]
[1750001291166,0.92571111,105860.0,105850.0,0.30356369]
[1750001291411,1.45463988,105860.0,105850.0,0.27522279]
[1750001291638,1.46408702,105860.0,105850.0,0.28588677]
[1750001291876,1.4546413,105860.0,105850.0,0.28588695]
[1750001292097,1.4451954,105860.0,105850.0,0.28588695]
[1750001292325,1.4451954,105860.0,105850.0,0.30356662]
[1750001292542,1.4451954,105860.0,105850.0,0.28588695]
[1750001292763,1.44461703,105860.0,105850.0,0.27528921]
[1750001292989,1.43574932,105860.0,105850.0,0.25760072]
[1750001293289,1.43574932,105860.0,105850.0,0.27528916]
[1750001293477,1.44461703,105860.0,105850.0,0.27528948]
[1750001293735,1.44461703,105860.0,105850.0,0.25760072]
[1750001293967,1.44461703,105860.0,105850.0,0.27528959]
[1750001294200,1.43517069,105860.0,105850.0,0.24815375]
[1750001294674,1.42630298,105860.0,105850.0,0.27528952]
[1750001294904,1.43517069,105860.0,105850.0,0.28473631]
[1750001295150,1.43517069,105860.0,105850.0,0.28473632]
[1750001295362,1.42630298,105860.0,105850.0,0.26704742]
[1750001295592,1.43517074,105860.0,105850.0,0.28473631]
[1750001295835,1.44461693,105860.0,105850.0,0.27649412]
[1750001296069,1.43574915,105860.0,105850.0,0.29418354]
[1750001296288,1.44461693,105860.0,105850.0,0.29418353]
[1750001296482,1.43574915,105860.0,105850.0,0.27649412]
[1750001296736,1.25568816,105860.0,105850.0,0.27649412]
[1750001296959,1.44461693,105860.0,105850.0,0.29418354]
[1750001297186,1.44461693,105860.0,105850.0,0.27649412]
[1750001297412,1.44461693,105860.0,105850.0,0.29418354]
[1750001297848,1.43574915,105860.0,105850.0,0.29415356]
[1750001298067,1.43574915,105860.0,105850.0,0.27649412]
[1750001298545,1.43574915,105860.0,105850.0,0.29415355]
[1750001299036,1.43574915,105860.0,105850.0,0.29415356]
[1750001299752,1.43574915,105860.0,105850.0,0.27649412]
[1750001299988,1.15063009,105860.0,105850.0,0.29415336]
[1750001300200,1.15063009,105860.0,105850.0,0.27649412]
[1750001300422,1.15063009,105860.0,105850.0,0.29415336]
[1750001300641,1.15063009,105860.0,105850.0,0.27649412]
[1750001300897,1.15063009,105860.0,105850.0,0.2941533]
[1750001301109,1.15063009,105860.0,105850.0,0.27649412]
[1750001301536,1.16007617,105860.0,105850.0,0.29415317]
[1750001301747,1.16007617,105860.0,105850.0,0.27649412]
[1750001302226,1.16007617,105860.0,105850.0,0.29415313]
[1750001302670,1.16952243,105860.0,105850.0,0.29415313]
[1750001303133,1.16952243,105860.0,105850.0,0.29415264]
[1750001303342,1.16952243,105860.0,105850.0,0.29415261]
[1750001303524,1.16952243,105860.0,105850.0,0.27649412]
[1750001303796,1.15063009,105860.0,105850.0,0.2941526]
[1750001304001,1.15063009,105860.0,105850.0,0.27649412]
[1750001304216,1.15063009,105860.0,105850.0,0.29415252]
[1750001304646,1.15063009,105860.0,105850.0,0.2941525]
[1750001304887,1.15063009,105860.0,105850.0,0.27649412]
[1750001305097,1.15063009,105860.0,105850.0,0.29415238]
[1750001305318,1.15063009,105860.0,105850.0,0.29415234]
[1750001305757,1.15063009,105860.0,105850.0,0.29415235]
[1750001306037,1.26567138,105860.0,105850.0,0.29415235]
[1750001306306,1.27511764,105860.0,105850.0,0.29415277]
[1750001306511,1.86887048,105860.0,105850.0,0.27649412]
[1750001306728,2.04835379,105860.0,105850.0,0.25636653]
[1750001306942,2.04835379,105860.0,105850.0,0.057975]
[1750001306943,2.04776085,105860.0,105850.0,0.057975]
[1750001307154,2.14400282,105860.0,105850.0,0.057975]
[1750001307595,2.1440029,105860.0,105850.0,0.22552607]
[1750001307809,2.14400287,105860.0,105850.0,0.26580764]
[1750001308031,2.14400291,105860.0,105850.0,0.22552607]
[1750001308236,2.1440029,105860.0,105850.0,0.24318889]
[1750001308451,2.13514947,105860.0,105850.0,0.22552607]
[1750001308671,2.14400279,105860.0,105850.0,0.22552607]
[1750001308883,2.14400279,105860.0,105850.0,0.24318833]
[1750001309098,2.14400274,105860.0,105850.0,0.22552607]
[1750001309364,2.1440028,105860.0,105850.0,0.22552607]
[1750001309586,2.1440028,105860.0,105850.0,0.24318857]
[1750001309821,2.13514947,105860.0,105850.0,0.23497322]
[1750001310034,2.14400276,105860.0,105850.0,0.2526354]
[1750001310255,2.14400277,105860.0,105850.0,0.2526354]
[1750001310466,2.14400277,105860.0,105850.0,0.22552607]
[1750001310695,2.1440028,105860.0,105850.0,0.21607883]
[1750001310906,2.12570321,105860.0,105850.0,0.21607883]
[1750001311127,2.12570321,105860.0,105850.0,0.23374121]
[1750001311345,2.13455655,105860.0,105850.0,0.21607883]
[1750001311563,2.13455655,105860.0,105850.0,0.23374121]
[1750001311772,2.12570321,105860.0,105850.0,0.23374118]
[1750001311955,2.12570321,105860.0,105850.0,0.21607883]
[1750001312196,2.17451655,105860.0,105850.0,0.23374117]
[1750001312511,2.16566321,105860.0,105850.0,0.23374091]
[1750001312728,2.17451655,105860.0,105850.0,0.23374068]
[1750001312938,2.17451655,105860.0,105850.0,0.23374074]
[1750001313146,2.17451657,105860.0,105850.0,0.23374065]
[1750001313591,2.17451656,105860.0,105850.0,0.23374068]
[1750001313800,2.17451656,105860.0,105850.0,0.03534629]
[1750001314015,2.17451657,105860.0,105850.0,0.03534629]
[1750001314218,2.16566321,105860.0,105850.0,0.03534629]
[1750001314432,2.17451651,105860.0,105850.0,0.01768488]
[1750001314862,2.17451647,105860.0,105850.0,0.03534151]
[1750001315074,2.17451656,105860.0,105850.0,0.01768488]
[1750001315284,2.16566321,105860.0,105850.0,0.03534192]
[1750001315492,2.17453159,105860.0,105850.0,0.03533907]
[1750001315700,2.17453159,105860.0,105850.0,0.03536813]
[1750001315918,2.17453159,105860.0,105850.0,0.03536749]
[1750001316171,2.17453159,105860.0,105850.0,0.22431411]
[1750001316404,2.07838237,105860.0,105850.0,0.03536749]
[1750001316639,2.07838237,105860.0,105850.0,0.01768488]
[1750001316864,2.06951399,105860.0,105850.0,0.03536346]
[1750001317100,2.0783824,105860.0,105850.0,0.03536341]
[1750001317329,2.17453162,105860.0,105850.0,0.03536337]
[1750001317533,2.17453162,105860.0,105850.0,0.03536336]
[1750001317756,2.17453161,105860.0,105850.0,0.03536332]
[1750001317969,2.17453161,105860.0,105850.0,0.01768488]
[1750001318201,2.17453164,105860.0,105850.0,0.03536343]
[1750001318429,2.17453164,105860.0,105850.0,0.03536324]
[1750001318692,2.17453165,105860.0,105850.0,0.01768488]
[1750001318924,2.17453165,105860.0,105850.0,0.03536294]
[1750001319132,2.17451861,105860.0,105850.0,0.01768488]
[1750001319345,2.16566321,105860.0,105850.0,0.03533701]
[1750001319574,2.17451866,105860.0,105850.0,0.03533707]
[1750001319996,2.16566321,105860.0,105850.0,0.03533708]
[1750001320228,2.16566321,105860.0,105850.0,0.01768488]
[1750001320436,2.17451866,105860.0,105850.0,0.03533707]
[1750001320666,2.17451866,105860.0,105850.0,0.03533708]
[1750001320897,2.17451866,105860.0,105850.0,0.01768488]
[1750001321355,2.17451866,105860.0,105850.0,0.03533709]
[1750001321590,2.17451866,105860.0,105850.0,0.01768488]
[1750001321814,2.16566321,105860.0,105850.0,0.03533708]
[1750001322049,2.17451866,105860.0,105850.0,0.01768488]
[1750001322258,2.16566321,105860.0,105850.0,0.01768488]
[1750001322483,2.16566321,105860.0,105850.0,0.03533707]
[1750001322774,2.17451866,105860.0,105850.0,0.03533707]
[1750001322988,2.16566321,105860.0,105850.0,0.01768488]
[1750001323201,2.16566321,105860.0,105850.0,0.03533708]
[1750001323641,2.17451866,105860.0,105850.0,0.01768488]